Cogmind - Beta 17 *** ADVENTURER MODE // 2026.07.29 @ 00:35:38 // Winter2019/RPGLIKE Player: Grimbling Result: Destroyed by Golem with Assembled Focal Cannon Performance ------------- Evolutions (4) 2000 Regions Visited (12) 2400 Robots Destroyed (88) 440 Value Destroyed (3399) 3399 Prototype IDs (23) 460 Alien Tech Used (0) 0 Bonus (206) 206 TOTAL SCORE: 8905 Bonus ------- Follower Combat Kills 275 Met Imprinter 300 Triggered Deep Caves Wall 500 Friendly Fire -869 Cogmind --------- Core Integrity 0/750 Matter 470/500 Energy 238/250 System Corruption 0% Temperature Cool (6) Movement Hovering (52) Location -6/Deep Caves Parts ------- > --- POWER (1) -------- Zionite Light DM Reactor > --- PROPULSION (4) --- Zionite Glidesys I Zionite Glidesys I Zionite Glidesys I > --- UTILITY (12) ----- Trap Scanner Improved Signal Interpreter Improved Terrain Scanner Target Analyzer Armor Integrity Analyzer Microactuators Actuator Array Improved Reaction Control System > --- WEAPON (3) ------- Chainsword Chainsword Ripper > --- INVENTORY (10) --- Zionite Phaser-S Zionite Phaser-S Heavy Rocket Launcher Remote Datajack Peak State ------------ > --- POWER ------------ Zionite Light DM Reactor > --- PROPULSION ------- Zionite Glidesys I Zionite Glidesys I Zionite Glidesys I Zionite Glidesys I > --- UTILITY ---------- Trap Scanner Improved Signal Interpreter Improved Terrain Scanner Target Analyzer Armor Integrity Analyzer Microactuators Actuator Array Improved Reaction Control System Zionite Heavy Carapace Layered Medium Armor Plating Hardlight Generator > --- WEAPON ----------- Chainsword Chainsword Ripper > --- INVENTORY -------- Zionite Light Carapace Zionite Laser-S Zionite Laser-S Zionite Laser-S Heavy Rocket Launcher Remote Datajack [Rating: 95] Favorites ----------- Power Fission Core Engine Improved Ion Engine Power Core Fission Core Reactor Zionite Light DM Reactor Propulsion Improved Gravmag System Leg Aluminum Leg Hover Unit Improved Gravmag System Flight Unit Flight Unit Utility Improved Terrain Scanner Device Improved Terrain Scanner Processor Improved Signal Interpreter Protection Layered Medium Armor Plating Weapon Chainsword Energy Gun Zionite Phaser-S Ballistic Gun Light Assault Rifle Launcher Rocket Launcher Special Weapon Remote Datajack Slashing Weapon Chainsword Piercing Weapon Spear Build | -11 -10 -10 -10 -9 -8 -7 -7 -6 -6 -6 -6 -6 ------- Run | Yrd Mat Min Exi Min Mat Fac Sto Fac Low Low Zio Dee Slots Evolved 16 | 8 . . . . . 4 . 1 . . 1 2 Power . | . . . . . . . . . . . . . Propulsion 3 | 3 . . . . . . . . . . . . Utility 11 | 3 . . . . . 4 . 1 . . 1 2 Weapon 2 | 2 . . . . . . . . . . . . Parts Attached 80 | 6 7 . . 3 7 6 19 8 3 2 4 15 Power 5 | 1 . . . . 1 . 1 . 1 . . 1 Engine 2 | 1 . . . . 1 . . . . . . . Core 2 | . . . . . . . 1 . 1 . . . Reactor 1 | . . . . . . . . . . . . 1 Propulsion 31 | 2 5 . . . 2 2 10 5 . . . 5 Treads . | . . . . . . . . . . . . . Leg 3 | 2 . . . . . . . . . . . 1 Wheel . | . . . . . . . . . . . . . Hover 13 | . . . . . 2 2 . 5 . . . 4 Flight 15 | . 5 . . . . . 10 . . . . . Utility 26 | 1 . . . . 2 4 7 1 2 1 2 6 Device 16 | 1 . . . . 2 1 7 . . 1 2 2 Storage . | . . . . . . . . . . . . . Processor 3 | . . . . . . 2 . . 1 . . . Hackware . | . . . . . . . . . . . . . Protection 7 | . . . . . . 1 . 1 1 . . 4 Artifact . | . . . . . . . . . . . . . Weapon 18 | 2 2 . . 3 2 . 1 2 . 1 2 3 Energy Gun 2 | . . . . . . . . . . . . 2 Energy Cannon . | . . . . . . . . . . . . . Ballistic Gun 5 | 2 2 . . 1 . . . . . . . . Ballistic Cannon . | . . . . . . . . . . . . . Launcher 3 | . . . . . 1 . 1 . . . . 1 Special Weapon 1 | . . . . . . . . . . . 1 . Impact Weapon . | . . . . . . . . . . . . . Slashing Weapon 6 | . . . . 2 1 . . 2 . . 1 . Piercing Weapon 1 | . . . . . . . . . . 1 . . Special Melee Weapon . | . . . . . . . . . . . . . Unidentified Prototypes 18 | . . . . . . . 5 2 . 1 1 9 Parts Lost 5 | . . 1 . . . . . . . . . 4 Power 1 | . . 1 . . . . . . . . . . Propulsion 1 | . . . . . . . . . . . . 1 Utility 3 | . . . . . . . . . . . . 3 Weapon . | . . . . . . . . . . . . . Highest Loss Streak 2 | . . 1 . . . . . . . . . 2 To Critical Strikes . | . . . . . . . . . . . . . Average Backups 3 | . . 2 3 4 2 3 5 5 4 4 3 4 Power . | . . . . . . . . . . 1 1 . Propulsion . | . . 1 1 1 1 . 1 1 . . . . Utility . | . . . . . . . 1 . . 1 . . Weapon 1 | . . 1 2 3 . 1 2 2 1 1 1 2 Tool/Special . | . . . . . . . . . . . . . Unused Backups 7 | . . 1 . . . 1 1 . . . . 4 Power . | . . . . . . . . . . . . . Propulsion 1 | . . . . . . . . . . . . 1 Utility . | . . . . . . . . . . . . . Weapon 5 | . . 1 . . . . 1 . . . . 3 Tool/Special 1 | . . . . . . 1 . . . . . . Average Slot Usage (%) 87 | . 58 74 66 66 80 84 90 98 100 100 99 91 Engine 2 | . 8 7 . . 7 7 1 . . . . . Core 2 | . . . . . . . 4 5 5 5 5 1 Hover 14 | . . . . . 6 25 8 11 23 23 22 20 Flight 9 | . 10 33 33 33 19 . 16 11 . . . . Device 23 | . 8 8 8 8 21 24 21 30 29 27 30 30 Processor 9 | . . . . . . 1 12 11 16 17 16 15 Protection 3 | . . . . . . . 6 6 5 6 5 3 Ballistic Gun 5 | . 20 25 25 24 1 . . . . . . . Slashing Weapon 12 | . . . . . 19 24 18 17 17 11 13 14 Peak Build Rating 95 | 8 11 11 11 17 26 38 64 69 70 74 75 95 Average Rating 48 | 5 9 10 10 11 23 26 50 65 69 69 70 79 On Entrance 35 | . 8 11 10 11 12 24 38 64 69 70 70 73 Avg Prop Armor Cover (%) 13 | . . . 14 . 7 . . . . . . . Naked Turns . | . . . . . . . . . . . . . Heaviest Build 46 | 8 10 10 5 8 24 26 38 43 43 42 43 46 Greatest Support 76 | 30 30 26 26 26 30 38 40 58 58 58 58 76 Greatest Overweight (x) 1 | . . . . . . . 1 1 . . . . Average Overweight (x) . | . . . . . . . . . . . . . Largest Inventory Capacity 10 | 5 5 5 5 5 5 8 10 10 10 10 10 10 Average Capacity 8 | 5 5 5 5 5 5 7 9 10 10 10 10 10 Most Carried 10 | . 4 3 4 5 5 7 10 10 9 8 6 9 Average Carried 5 | . . 2 3 4 3 5 8 7 7 6 4 4 Final Capacity 10 | 5 5 5 5 5 5 8 10 10 10 10 10 10 Final Carried 10 | . 2 2 4 4 4 7 10 6 7 5 6 4 Class Distribution -------------------- 91% | Wizard-Scout 8% | Wizard-Skirmisher Dominant Class ---------------- Wizard-Skirmisher | -10/Materials Wizard-Scout | -10/Mines Wizard-Scout | -10/Exiles Wizard-Scout | -9/Mines Wizard-Scout | -8/Materials Wizard-Scout | -7/Factory Wizard-Scout | -7/Storage Wizard-Scout | -6/Factory Wizard-Scout | -6/Lower Caves Wizard-Scout | -6/Lower Caves Wizard-Scout | -6/Zion Wizard-Scout | -6/Deep Caves Resources | -11 -10 -10 -10 -9 -8 -7 -7 -6 -6 -6 -6 -6 ----------- Run | Yrd Mat Min Exi Min Mat Fac Sto Fac Low Low Zio Dee Matter Collected 1445 | 391 160 . . 82 82 60 240 43 67 40 30 250 Remotely . | . . . . . . . . . . . . . Salvage Created 3517 | 143 99 . . . 246 57 654 399 508 687 57 667 Parts 218 | 6 13 . . . 29 9 34 15 33 32 7 40 Haulers Intercepted 2 | . . . . . . . 1 . . 1 . . Recyclers Shooed . | . . . . . . . . . . . . . Parts Field Recycled . | . . . . . . . . . . . . . Retrieved Matter . | . . . . . . . . . . . . . Parts Self-Destructed 64 | . . . . . . . . . 32 32 . . Prevented . | . . . . . . . . . . . . . Parts Restored . | . . . . . . . . . . . . . Kills | -11 -10 -10 -10 -9 -8 -7 -7 -6 -6 -6 -6 -6 ------- Run | Yrd Mat Min Exi Min Mat Fac Sto Fac Low Low Zio Dee Combat Hostiles Destroyed 74 | . 6 . . . 10 3 10 5 14 14 . 12 Melee 68 | . . . . . 10 3 10 5 14 14 . 12 Guns 6 | . 6 . . . . . . . . . . . Classes Destroyed 16 | 2 2 . . . 3 1 2 . 3 . 1 2 Tunneler 3 | 2 . . . . . . . 1 . . . . Hauler 2 | . . . . . . . 1 . . 1 . . Recycler 3 | 1 . . . . . 1 1 . . . . . Mechanic 1 | . . . . . . . 1 . . . . . Operator 2 | . . . . . 1 . 1 . . . . . Watcher 5 | . 1 . . . 3 . . 1 . . . . Swarmer 19 | . 6 . . . 2 . 5 . 3 3 . . Grunt 24 | . . . . . 3 . 2 4 6 9 . . Brawler 1 | . . . . . . . . . 1 . . . Sentry 10 | . . . . . 5 1 3 . . 1 . . Hunter 5 | . . . . . . 2 . 1 2 . . . Programmer 1 | . . . . . . . . . 1 . . . Behemoth 2 | . . . . . . . . . 1 1 . . Z-Technician 5 | . . . . . . . . . . . . 5 Z-Light 9 | . . . . . . . . . . . . 9 Tinkerer 1 | . . . . . . . . . . . 1 . Assembled 3 | . . . . . . . . . . . . 3 Best Kill Streak 6 | 2 3 . . . 4 3 6 5 3 5 1 5 Combat Bots Only 6 | . 3 . . . 3 2 6 3 3 5 . 5 Max Kills in Single Turn 2 | 1 2 . . . 1 1 1 2 2 1 1 1 Gunslinging 1 | . 1 . . . . . . . . . . . Exploded . | . . . . . . . . . . . . . Melee 2 | . . . . . 1 1 1 2 2 1 . 1 Uniques/NPCs Destroyed 1 | . . . . . . . . . . . 1 . Imprinter (-6/Zion) Combat | -11 -10 -10 -10 -9 -8 -7 -7 -6 -6 -6 -6 -6 -------- Run | Yrd Mat Min Exi Min Mat Fac Sto Fac Low Low Zio Dee Hostile Shots Fired 612 | . 32 . . . 62 26 98 25 91 93 39 146 Missed 237 | . 14 . . . 21 9 41 10 32 31 27 52 Hits 375 | . 18 . . . 41 17 57 15 59 62 12 94 Melee 4 | . . . . . . . . . 4 . . . Projectile 371 | . 18 . . . 41 17 57 15 55 62 12 94 AOE 2 | . . . . 2 . . . . . . . . Critical Strikes 11 | . . . . . 2 . 1 1 4 3 . . Damage Taken 4326 | . 106 63 . 30 317 49 185 145 648 667 92 2024 Core 2961 | . 79 33 . 24 258 44 126 99 419 481 54 1344 Absorbed by Shields 1232 | . . . . . 76 59 216 60 208 245 16 352 Redirected to Core 2184 | . 69 33 . 17 164 13 100 46 322 337 53 1030 Ignored by Resistances 2030 | . 44 20 . 12 148 45 171 77 304 334 37 838 Core Remaining (%) 98 | 100 . . . 100 100 . 95 . . . . . Volleys Fired 24 | 5 14 . . . 2 . . . . . 2 1 Largest 3 | 2 3 . . . 1 . . . . . 1 1 Hottest 60 | 40 60 . . . 33 . . . . . 5 5 Shots Fired 52 | 10 37 . . . 2 . . . . . 2 1 Gun 47 | 10 37 . . . . . . . . . . . Cannon . | . . . . . . . . . . . . . Launcher 2 | . . . . . 2 . . . . . . . Special 3 | . . . . . . . . . . . 2 1 Kinetic 47 | 10 37 . . . . . . . . . . . Thermal . | . . . . . . . . . . . . . Explosive 2 | . . . . . 2 . . . . . . . Electromagnetic . | . . . . . . . . . . . . . Robot Hit Streak 10 | 4 10 . . . 4 . . . . . 6 7 Robot Miss Streak 1 | 1 1 . . . . . . . . . . . Penetration Max . | . . . . . . . . . . . . . Secondary Targets 2 | . 2 . . . . . . . . . . . Max Gunslinging Chain 1 | . 1 . . . . . . . . . . . Shots Hit Robots 323 | 7 27 . . . 29 8 34 29 63 55 5 66 Core Hits 132 | 5 12 . . . 16 4 14 11 23 25 2 20 Critical Kills . | . . . . . . . . . . . . . Critical Parts Destroyed . | . . . . . . . . . . . . . Critical Strikes 30 | . . . . . 3 . 4 4 8 8 1 2 Sever 25 | . . . . . 3 . 4 4 8 4 . 2 Impale 5 | . . . . . . . . . . 4 1 . Melee Attacks 327 | . . . . . 32 10 43 34 68 62 6 72 Impact . | . . . . . . . . . . . . . Slashing 291 | . . . . . 32 10 43 34 68 28 4 72 Piercing 36 | . . . . . . . . . . 34 2 . Sneak Attacks 18 | . . . . . 1 1 4 1 . 2 3 6 Combat Hostiles 1 | . . . . . . . 1 . . . . . Follow-up Attacks 63 | . . . . . 5 2 6 7 17 13 1 12 Damage Inflicted 12300 | 61 245 . . . 1398 314 1597 1163 2246 2042 213 3021 Guns 303 | 58 245 . . . . . . . . . . . Cannons . | . . . . . . . . . . . . . Explosions 227 | . . . . . 227 . . . . . . . Melee 11767 | . . . . . 1171 314 1597 1163 2246 2042 213 3021 Ramming 3 | 3 . . . . . . . . . . . . Kinetic 303 | 58 245 . . . . . . . . . . . Thermal . | . . . . . . . . . . . . . Explosive 227 | . . . . . 227 . . . . . . . Electromagnetic . | . . . . . . . . . . . . . Impact . | . . . . . . . . . . . . . Slashing 10420 | . . . . . 1171 314 1597 1163 2246 844 64 3021 Piercing 1347 | . . . . . . . . . . 1198 149 . Highest Corruption 1 | . . . . . . . . . 1 1 1 . Average Corruption 1 | . . . . . . . . . 1 1 1 . Corruption Purged . | . . . . . . . . . . . . . Corruption Blocked . | . . . . . . . . . . . . . Effects 4 | . . . . . . . . . 2 2 . . Message Errors 2 | . . . . . . . . . 2 . . . Energy Discharges 2 | . . . . . . . . . . 2 . . Overload Shots . | . . . . . . . . . . . . . Overflow Damage 849 | . . . . . 63 46 175 39 122 91 108 205 Projectiles . | . . . . . . . . . . . . . Explosions . | . . . . . . . . . . . . . Melee 849 | . . . . . 63 46 175 39 122 91 108 205 Knockbacks . | . . . . . . . . . . . . . Impact . | . . . . . . . . . . . . . Kinetic . | . . . . . . . . . . . . . Secondary . | . . . . . . . . . . . . . Self-Inflicted Damage . | . . . . . . . . . . . . . Shots . | . . . . . . . . . . . . . Rammed . | . . . . . . . . . . . . . Targets Rammed 1 | 1 . . . . . . . . . . . . Kicked 1 | 1 . . . . . . . . . . . . Crushed . | . . . . . . . . . . . . . Highest Temperature 328 | . . . . . . . 328 . . . . . Average Temperature 212 | . . . . . . . 212 . . . . . Received Heat Transfer 1251 | . 9 . . . 140 14 71 66 137 243 . 571 Siege Activations . | . . . . . . . . . . . . . Martial Activations . | . . . . . . . . . . . . . Shielding Activations . | . . . . . . . . . . . . . Robots Disrupted . | . . . . . . . . . . . . . Combat Hostiles . | . . . . . . . . . . . . . Robots Corrupted . | . . . . . . . . . . . . . Combat Hostiles . | . . . . . . . . . . . . . Parts Fried . | . . . . . . . . . . . . . Impact Corruptions . | . . . . . . . . . . . . . Robots Melted . | . . . . . . . . . . . . . Combat Hostiles . | . . . . . . . . . . . . . Parts Melted . | . . . . . . . . . . . . . Heat Transferred . | . . . . . . . . . . . . . Parts Sabotaged . | . . . . . . . . . . . . . Parts Stolen . | . . . . . . . . . . . . . Parts Stripped . | . . . . . . . . . . . . . Power Chain Reactions . | . . . . . . . . . . . . . Alert | -11 -10 -10 -10 -9 -8 -7 -7 -6 -6 -6 -6 -6 ------- Run | Yrd Mat Min Exi Min Mat Fac Sto Fac Low Low Zio Dee Maximum Alert Level 1 | . . . . . 1 . 1 . . . . . Low Security (%) 88 | 100 100 100 . 100 63 100 80 100 . . . . Level 1 11 | . . . . . 36 . 19 . . . . . Level 2 . | . . . . . . . . . . . . . Level 3 . | . . . . . . . . . . . . . Level 4 . | . . . . . . . . . . . . . Level 5 . | . . . . . . . . . . . . . High Security . | . . . . . . . . . . . . . Max Security . | . . . . . . . . . . . . . Peak Influence 331 | 5 107 . . 53 331 55 313 163 . . . . Initial 119 | . . . . . 7 . 13 119 . . . . Average 66 | 1 35 . . 11 133 21 84 108 . . . . Influence Increases 2368 | 15 207 . . 53 455 94 670 124 435 315 . . Destroy 0b10 Robot/C 1500 | . 120 . . 40 220 60 400 100 280 280 . . Destroy 0b10 Robot/NC 85 | 15 5 . . . 20 5 20 10 5 5 . . Destroy Leader 312 | . 22 . . 10 76 20 82 12 60 30 . . Allied During Kill 39 | . . . . 3 . . 36 . . . . . Disable Machine 36 | . . . . . . 9 27 . . . . . Destroy Structure 21 | . . . . . 19 . . 2 . . . . Partial Spotted 90 | . 15 . . . 30 . 45 . . . . . Lose Combat Pursuer 285 | . 45 . . . 90 . 60 . 90 . . . Influence Decreases 2368 | 15 207 . . 30 478 60 396 432 270 276 204 . Entered New Map 476 | . . . . . 16 . 21 189 . 46 204 . Time Decay 1075 | 15 110 . . 30 141 60 129 90 270 230 . . Lost Ally 171 | . . . . . 20 . 151 . . . . . Purge Threat 646 | . 97 . . . 301 . 95 153 . . . . Squads Dispatched 10 | . 1 . . . 1 1 6 1 . . . . Investigation 2 | . 1 . . . . 1 . . . . . . Extermination 1 | . . . . . . . 1 . . . . . Reinforcement 4 | . . . . . 1 . 2 1 . . . . Assault 2 | . . . . . . . 2 . . . . . Garrison 1 | . . . . . . . 1 . . . . . Intercept . | . . . . . . . . . . . . . Searches Triggered . | . . . . . . . . . . . . . Construction Impeded 1 | . . . . . . . . 1 . . . . Haulers Reinforced 1 | . . . . . . . 1 . . . . . Active Scanning Responses . | . . . . . . . . . . . . . Cargo Convoy Interrupts . | . . . . . . . . . . . . . Stealth | -11 -10 -10 -10 -9 -8 -7 -7 -6 -6 -6 -6 -6 --------- Run | Yrd Mat Min Exi Min Mat Fac Sto Fac Low Low Zio Dee Distress Signals 7 | . . . . . 2 . 5 . . . . . Communications Jammed . | . . . . . . . . . . . . . Distress Signals . | . . . . . . . . . . . . . Times Spotted 151 | . 14 . . 3 22 3 39 6 18 14 18 14 Peak Tracking Total 18 | . 3 . . 2 10 1 9 3 6 5 18 5 Tactical Retreats 14 | . 2 . . . 3 . 3 . 4 . 1 1 Traps | -11 -10 -10 -10 -9 -8 -7 -7 -6 -6 -6 -6 -6 ------- Run | Yrd Mat Min Exi Min Mat Fac Sto Fac Low Low Zio Dee Traps Triggered 2 | . 1 1 . . . . . . . . . . Indirectly . | . . . . . . . . . . . . . Trap Hack Attempts . | . . . . . . . . . . . . . Triggered . | . . . . . . . . . . . . . Disarmed 40 | . 6 . . . 6 6 11 11 . . . . Reprogrammed . | . . . . . . . . . . . . . Reused . | . . . . . . . . . . . . . Traps Extracted . | . . . . . . . . . . . . . Installed . | . . . . . . . . . . . . . Triggered . | . . . . . . . . . . . . . Machines | -11 -10 -10 -10 -9 -8 -7 -7 -6 -6 -6 -6 -6 ---------- Run | Yrd Mat Min Exi Min Mat Fac Sto Fac Low Low Zio Dee Machines Disabled 4 | . . . . . . 1 3 . . . . . Max in Single Turn 1 | . . . . . . 1 1 . . . . . Garrison Access 2 | . . . . . . . 1 1 . . . . Machines Repaired . | . . . . . . . . . . . . . Machines Dismantled . | . . . . . . . . . . . . . Machines Sabotaged . | . . . . . . . . . . . . . Overloaded Fab Kills . | . . . . . . . . . . . . . Hacking | -11 -10 -10 -10 -9 -8 -7 -7 -6 -6 -6 -6 -6 --------- Run | Yrd Mat Min Exi Min Mat Fac Sto Fac Low Low Zio Dee Machines Accessed 34 | . 7 2 . 1 7 4 10 3 . . . . Terminals 24 | . 5 1 . 1 6 2 8 1 . . . . Fabricators 1 | . . . . . . 1 . . . . . . Repair Stations . | . . . . . . . . . . . . . Recycling Units 4 | . 2 . . . . . 1 1 . . . . Scanalyzers 2 | . . . . . 1 1 . . . . . . Garrison Access 2 | . . . . . . . 1 1 . . . . Total Hacks 95 | . 20 2 . 2 27 11 24 9 . . . . Successful 91 | . 16 2 . 2 27 11 24 9 . . . . Failed 4 | . 4 . . . . . . . . . . . Catastrophic 1 | . 1 . . . . . . . . . . . Database Lockouts . | . . . . . . . . . . . . . Manual 55 | . 12 . 1 2 14 4 17 . . . 5 . Terminals 72 | . 18 1 . 2 19 6 21 5 . . . . Fabricators 2 | . . . . . . 2 . . . . . . Repair Stations . | . . . . . . . . . . . . . Recycling Units 7 | . 2 . . . . . 2 3 . . . . Scanalyzers 11 | . . . . . 8 3 . . . . . . Garrison Access 2 | . . . . . . . 1 1 . . . . Terminal Hacks 52 | . 9 2 . 2 14 4 16 5 . . . . Record 1 | . . . . . 1 . . . . . . . Robot Analysis 2 | . 1 . . . 1 . . . . . . . Prototype ID Bank 2 | . 1 . . . 1 . . . . . . . Open Door 3 | . . 1 . . . . 2 . . . . . Level Access Points 3 | . . . . 1 1 . 1 . . . . . Branch Access Points 4 | . 1 . . 1 1 1 . . . . . . Emergency Access Points 2 | . . . . . 2 . . . . . . . Terminal Index 2 | . . . . . 1 . 1 . . . . . Unreport Threat 11 | . 2 . . . 4 . 2 3 . . . . Disarm Traps 14 | . 2 . . . 1 2 7 2 . . . . Recall Investigation 1 | . 1 . . . . . . . . . . . Recall Extermination 1 | . . . . . . . 1 . . . . . Recall Reinforcements 1 | . . . . . . . 1 . . . . . Registered Components 2 | . 1 . . . . . 1 . . . . . Registered Prototypes 1 | . . . . . 1 . . . . . . . Zone Layout 2 | . . 1 . . . 1 . . . . . . Fabricator Hacks 2 | . . . . . . 2 . . . . . . Load Schematic 1 | . . . . . . 1 . . . . . . Build 1 | . . . . . . 1 . . . . . . Repair Station Hacks . | . . . . . . . . . . . . . Recycling Unit Hacks 6 | . 2 . . . . . 1 3 . . . . Report Inventory 1 | . . . . . . . . 1 . . . . Retrieve Matter 1 | . . . . . . . . 1 . . . . Retrieve Components 4 | . 2 . . . . . 1 1 . . . . Scanalyzer 11 | . . . . . 8 3 . . . . . . Insert Component 2 | . . . . . 2 . . . . . . . Analyze 1 | . . . . . 1 . . . . . . . Retrieve Study 8 | . . . . . 5 3 . . . . . . Garrison Access Hacks 2 | . . . . . . . 1 1 . . . . Seal Access 2 | . . . . . . . 1 1 . . . . Unauthorized Hacks 18 | . 5 . . . 5 2 6 . . . . . Terminals 17 | . 5 . . . 5 2 5 . . . . . Skim 17 | . 5 . . . 5 2 5 . . . . . Fabricators . | . . . . . . . . . . . . . Repair Stations . | . . . . . . . . . . . . . Recycling Units 1 | . . . . . . . 1 . . . . . Reject 1 | . . . . . . . 1 . . . . . Scanalyzers . | . . . . . . . . . . . . . Garrison Access . | . . . . . . . . . . . . . Data Cores Recovered 1 | . . . . . 1 . . . . . . . Used 1 | . . . . . 1 . . . . . . . Hacking Detections 12 | . 4 . . . 3 2 3 . . . . . Full Trace Events 1 | . . . . . . 1 . . . . . . Feedback Events . | . . . . . . . . . . . . . Feedback Blocked . | . . . . . . . . . . . . . Robot Schematics Acquired 3 | . . . . . . . . . . . 3 . Robots Built . | . . . . . . . . . . . . . Authchips . | . . . . . . . . . . . . . Time . | . . . . . . . . . . . . . Total Robot Build Rating . | . . . . . . . . . . . . . Part Schematics Acquired 16 | . . . . . 1 . . . . . 15 . Parts Built 3 | . . . . . . 3 . . . . . . Authchips . | . . . . . . . . . . . . . Time 51 | . . . . . . 51 . . . . . . Total Part Build Rating 3 | . . . . . . 3 . . . . . . Part Studies Acquired 8 | . . . . . 5 3 . . . . . . Parts Repaired . | . . . . . . . . . . . . . Time . | . . . . . . . . . . . . . Parts Recycled . | . . . . . . . . . . . . . Recycled Matter . | . . . . . . . . . . . . . Retrieved Matter . | . . . . . . . . . . . . . Retrieved Components 7 | . 2 . . . . . 5 . . . . . Parts Scanalyzed 1 | . . . . . 1 . . . . . . . Part Schematics Acquired 1 | . . . . . 1 . . . . . . . Parts Damaged . | . . . . . . . . . . . . . Bothacking | -11 -10 -10 -10 -9 -8 -7 -7 -6 -6 -6 -6 -6 ------------ Run | Yrd Mat Min Exi Min Mat Fac Sto Fac Low Low Zio Dee Used RIF Installer . | . . . . . . . . . . . . . Robots Hacked 3 | . . . . . . . . . . . 2 1 Non-combat 1 | . . . . . . . . . . . 1 . Combat 2 | . . . . . . . . . . . 1 1 Robot Hacks Applied 3 | . . . . . . . . . . . 2 1 parse_system 3 | . . . . . . . . . . . 2 1 Relay Couplers Released . | . . . . . . . . . . . . . Fabnet Peak Effective % . | . . . . . . . . . . . . . Robots Rewired 5 | . . . 4 . . . 1 . . . . . Allies Hacked . | . . . . . . . . . . . . . Hacks Repelled . | . . . . . . . . . . . . . Allies | -11 -10 -10 -10 -9 -8 -7 -7 -6 -6 -6 -6 -6 -------- Run | Yrd Mat Min Exi Min Mat Fac Sto Fac Low Low Zio Dee Total Allies 21 | . . . 4 3 . . 12 . . . 2 . Largest Group 10 | . . . 4 7 1 . 10 . . . 2 . Highest-Rated Group 173 | . . . 45 85 8 . 173 . . . 59 . Highest-Rated Ally 39 | . . . 21 21 8 . 31 . . . 39 . Total Orders 2 | . . . . . . . 2 . . . . . EXPLORE 2 | . . . . . . . 2 . . . . . Ally Attacks 69 | . . . . 9 2 . 58 . . . . . Total Damage 927 | . . . . 147 20 . 760 . . . . . Kills 13 | . . . . 2 1 . 10 . . . . . Allies Corrupted . | . . . . . . . . . . . . . Allies Melted 1 | . . . . . . . 1 . . . . . Intel | -11 -10 -10 -10 -9 -8 -7 -7 -6 -6 -6 -6 -6 ------- Run | Yrd Mat Min Exi Min Mat Fac Sto Fac Low Low Zio Dee Active Infowar (turns) 4361 | 42 410 86 252 186 455 207 354 202 621 475 468 603 Terrain 4361 | 42 410 86 252 186 455 207 354 202 621 475 468 603 Traps 3311 | . . . . . 381 207 354 202 621 475 468 603 ECM 3 | . . . . . . 3 . . . . . . Robot Analysis Total 2 | . 1 . . . 1 . . . . . . . Derelict Logs Recovered 9 | . . 1 . 2 . . . . 2 2 2 . Drone Launches 12 | . . . . . . . 11 . . . 1 . Drone Recoveries 4 | . . . . . . . 4 . . . . . Exploration | -11 -10 -10 -10 -9 -8 -7 -7 -6 -6 -6 -6 -6 ------------- Run | Yrd Mat Min Exi Min Mat Fac Sto Fac Low Low Zio Dee Turns Passed 4422 | 103 410 86 252 186 455 207 354 202 621 475 468 603 Spaces Moved 6892 | 72 545 239 403 449 619 230 606 290 1066 697 946 730 Core 304 | 8 . . 295 . . . 1 . . . . . Treads . | . . . . . . . . . . . . . Legs 244 | 64 180 . . . . . . . . . . . Wheels . | . . . . . . . . . . . . . Hover 4107 | . . . . . 148 230 122 168 1066 697 946 730 Flight 2237 | . 365 239 108 449 471 . 483 122 . . . . Fastest Speed 26 | 50 31 31 31 31 31 48 26 26 45 45 45 45 Average Speed 43 | 112 61 31 44 31 36 49 31 37 45 45 45 47 Slowest Speed 120 | 120 120 31 50 31 56 56 100 110 45 45 45 52 Overloaded Moves . | . . . . . . . . . . . . . Propulsion Burnouts . | . . . . . . . . . . . . . Robots Hopped 25 | . 7 3 . 7 1 . 6 1 . . . . Potential Cave-ins . | . . . . . . . . . . . . . Cave-ins Triggered . | . . . . . . . . . . . . . Exploration Rate (%) 61 | 3 69 47 89 75 56 5 95 10 93 91 87 82 Regions Visited 12 Branch Regions 8 Pre-discovered Areas 5 | . . 1 . 1 1 . . . . 1 1 . Known Exits Taken 9 | . 1 . . 1 1 1 1 1 1 1 1 . Unknown Exits Taken 3 | 1 . 1 1 . . . . . . . . . Scrap Searched 10 | . . 1 . 1 . . . . 3 2 3 . Spaces Dug 4 | . . . . . 2 . . 2 . . . . Terrain Destroyed 26 | . . . . . 24 . . 2 . . . . Melee 4 | . . . . . 2 . . 2 . . . . Projectile . | . . . . . . . . . . . . . AOE 22 | . . . . . 22 . . . . . . . Terrain Rammed . | . . . . . . . . . . . . . Walls Destroyed . | . . . . . . . . . . . . . Machines Disabled . | . . . . . . . . . . . . . Actions | -11 -10 -10 -10 -9 -8 -7 -7 -6 -6 -6 -6 -6 --------- Run | Yrd Mat Min Exi Min Mat Fac Sto Fac Low Low Zio Dee Total 8038 | 83 590 247 473 490 821 310 736 368 1176 813 983 948 Wait 489 | . 17 10 53 30 133 57 45 33 9 26 17 59 Move 6831 | 72 530 232 402 434 616 229 593 287 1065 696 945 730 Hop 25 | . 7 3 . 7 1 . 6 1 . . . . Pick Up 35 | . 4 1 2 1 5 4 5 1 3 2 1 6 Fast Attach 65 | 6 3 . . . 5 6 17 5 2 3 3 15 Attach 30 | . 2 . . 4 4 . 4 3 . 1 3 9 Detach 53 | . 2 . . 3 4 1 9 1 2 3 5 23 Swap 6 | . 2 . . 2 . . . . 1 . . 1 Drop 81 | . 4 1 . 3 9 2 17 9 5 6 2 23 Fire 24 | 5 14 . . . 2 . . . . . 2 1 Melee 233 | . . . . . 25 7 33 24 46 42 3 53 Ram . | . . . . . . . . . . . . . Kick . | . . . . . . . . . . . . . Crush . | . . . . . . . . . . . . . Escape Stasis . | . . . . . . . . . . . . . Rewire 19 | . . . 16 . . . 1 . . . 2 . Trap . | . . . . . . . . . . . . . Miscellaneous 147 | . 5 . . 6 17 4 6 4 43 34 . 28 Route ------- -11/Scrapyard -10/Materials (discovered 5 exits: *Mat x2 / *Min x2 / [Sub]) -10/Mines (discovered 4 exits: *Mat x2 / *Exi / [Sub]) -10/Exiles (discovered 2 exits: *Min x2) -9/Mines (discovered 2 exits: *Mat x2) -8/Materials (discovered 3 exits: *Fac x3) -7/Factory (discovered 4 exits: *Sto x2 / Low x2) -7/Storage (discovered 2 exits: *Fac / [Rec]) -6/Factory (discovered 3 exits: *Fac / *Low x2) -6/Lower Caves -6/Lower Caves (discovered 2 exits: *Fac / *Zio) -6/Zion (discovered 2 exits: *Dee / [*Pro]) -6/Deep Caves (discovered 1 exit: [Pro]) History --------- Turn | Location | Event 1 | -11/Scrapyard | Upgraded with Propulsion slot (x3) 1 | -11/Scrapyard | Upgraded with Utility slot (x2) 1 | -11/Scrapyard | Upgraded with Weapon slot (x2) 1 | -11/Scrapyard | Upgraded with Utility slot (x1) 3 | -11/Scrapyard | Discovered new exit (range 18) 104 | -11/Scrapyard | Entered Materials 106 | -10/Materials | Discovered new exit (range 19) 132 | -10/Materials | Identified exit to Mines 231 | -10/Materials | Discovered new exit (range 14) 320 | -10/Materials | Build established: Wizard-Skirmisher 407 | -10/Materials | Discovered new exit (range 18) 444 | -10/Materials | Discovered new exit (range 13) 514 | -10/Materials | Entered Mines 525 | -10/Mines | Found a hidden stash of uninstalled traps 528 | -10/Mines | Met a Derelict bent on vengeance 546 | -10/Mines | Received a Rocket Launcher from a helpful Derelict 569 | -10/Mines | Identified exit to Materials 570 | -10/Mines | Discovered exit to Materials (range 14) 572 | -10/Mines | Learned location of Storage (-7) 573 | -10/Mines | Discovered new exit (range 13) 593 | -10/Mines | Met a Derelict who couldn't figure out how to use a Trap Extractor 597 | -10/Mines | Discovered new exit (range 11) 599 | -10/Mines | Deemed a non-threat by the Exiles lab entrance 600 | -10/Mines | Entered Exiles 600 | -10/Exiles | Found Exiles lab destroyed 605 | -10/Exiles | Discovered new exit (range 17) 665 | -10/Exiles | Build established: Wizard-Scout 799 | -10/Exiles | Discovered new exit (range 15) 852 | -10/Exiles | Entered Mines 852 | -9/Mines | Accompanied by 4 allies 853 | -9/Mines | Assisted by bots powering up and referring to "LRC-V3" 854 | -9/Mines | Reached level 2 862 | -9/Mines | Learned Materials stockpile data 864 | -9/Mines | Discovered new exit (range 7) 885 | -9/Mines | A weapon hastily lodged in a ceiling crevice suddenly fell to the ground 939 | -9/Mines | Discovered new exit (range 3) 942 | -9/Mines | Identified exit to Materials 956 | -9/Mines | Learned location of Zion (-6) 961 | -9/Mines | Assembled infested the area 961 | -9/Mines | Joined a pair of Derelicts in attacking an 0b10 outpost 1012 | -9/Mines | Lost 4 allies 1038 | -9/Mines | Entered Materials 1038 | -8/Materials | Accompanied by 1 ally 1040 | -8/Materials | Reached level 3 1040 | -8/Materials | Reached level 4 1040 | -8/Materials | Reached level 5 1040 | -8/Materials | Reached level 6 1086 | -8/Materials | Reached level 7 1090 | -8/Materials | Identified exit to Factory 1335 | -8/Materials | Learned location of Recycling (-7) 1380 | -8/Materials | Learned location of 1 exit from Extension 1414 | -8/Materials | Learned location of 1 exit from Recycling 1450 | -8/Materials | Learned Factory security intel 1451 | -8/Materials | Learned location of 2 exits from Lower Caves 1452 | -8/Materials | Learned location of 1 exit from Recycling 1453 | -8/Materials | Learned Factory emergency access door positions 1473 | -8/Materials | Learned Factory stockpile data 1493 | -8/Materials | Entered Factory 1494 | -7/Factory | Identified exit to Lower Caves 1495 | -7/Factory | Reached level 8 1495 | -7/Factory | Reached level 9 1508 | -7/Factory | Identified exit to Storage 1567 | -7/Factory | Fabricated Hover Unit (x3) 1580 | -7/Factory | Reached level 10 1684 | -7/Factory | Upgraded with Utility slot (x4) 1700 | -7/Factory | Entered Storage 1705 | -7/Storage | Identified exit to Factory 1791 | -7/Storage | Reached level 11 1813 | -7/Storage | Lost 4 allies 1888 | -7/Storage | Discovered new exit (range 14) 1893 | -7/Storage | Assisted by bots powering up and referring to "LRC-V3" 1905 | -7/Storage | Garrison activated, responded to threat 1937 | -7/Storage | Reached level 12 1953 | -7/Storage | Lost 6 allies 1991 | -7/Storage | Met a pair of Derelict thieves 2054 | -7/Storage | Entered Factory 2055 | -6/Factory | Identified exit to Lower Caves 2056 | -6/Factory | Reached level 13 2056 | -6/Factory | Reached level 14 2153 | -6/Factory | Upgraded with Utility slot (x1) 2185 | -6/Factory | Discovered new exit (range 15) 2246 | -6/Factory | Discovered exit to Lower Caves (range 16) 2256 | -6/Factory | Entered Lower Caves 2257 | -6/Lower Caves | Identified exit to Lower Caves 2452 | -6/Lower Caves | Reached level 15 2486 | -6/Lower Caves | Spotted B-75 Beast 2495 | -6/Lower Caves | Destroyed B-75 Beast 2772 | -6/Lower Caves | Learned Factory stockpile data 2877 | -6/Lower Caves | Entered another Lower Caves area 2878 | -6/Lower Caves | Identified exit to Factory 2879 | -6/Lower Caves | Reached level 16 2999 | -6/Lower Caves | Spotted B-75 Beast 3030 | -6/Lower Caves | Destroyed B-75 Beast 3068 | -6/Lower Caves | Attracted the attention of an 0b10 checkpoint 3093 | -6/Lower Caves | Encountered a Warlord checkpoint 3115 | -6/Lower Caves | Learned Factory emergency access door positions 3169 | -6/Lower Caves | Reached level 17 3308 | -6/Lower Caves | Discovered new exit (range 5) 3310 | -6/Lower Caves | Identified exit to Zion 3352 | -6/Lower Caves | Entered Zion 3362 | -6/Zion | Given the Hacking Drone Bay 3363 | -6/Zion | Found Prototype Device 3363 | -6/Zion | Identified Hacking Drone Bay 3393 | -6/Zion | Discovered new exit (range 11) 3403 | -6/Zion | System corruption cleaned by Quarantine Array 3416 | -6/Zion | Gained Derelict followers 3445 | -6/Zion | Learned Factory scanalyzer intel 3449 | -6/Zion | Received a hallucinogenic algorithm 3449 | -6/Zion | Ran a hallucination algorithm 3532 | -6/Zion | Discovered new exit (range 16) 3556 | -6/Zion | Learned location of Quarantine (-3) 3639 | -6/Zion | Upgraded with Utility slot (x1) 3647 | -6/Zion | Learned Factory emergency access door positions 3729 | -6/Zion | Met Imprinter 3762 | -6/Zion | Murdered Imprinter 3763 | -6/Zion | Extracted access codes from Imprinter's data core 3763 | -6/Zion | Attacked by Zionites 3812 | -6/Zion | Opened final containment barrier to the Deep Caves 3819 | -6/Zion | Saw the warning signs outside the Deep Caves entrance 3819 | -6/Zion | Identified exit to Deep Caves 3820 | -6/Zion | Entered Deep Caves 3960 | -6/Deep Caves | Found Prototype Protection 3960 | -6/Deep Caves | Identified Zio. Weapon Casing 4028 | -6/Deep Caves | Found Prototype Protection 4028 | -6/Deep Caves | Identified Zio. Heavy Carapace 4031 | -6/Deep Caves | Upgraded with Utility slot (x2) 4048 | -6/Deep Caves | Z-Facility disabled 4083 | -6/Deep Caves | Core integrity fell below 50% 4168 | -6/Deep Caves | Found Zio. Heavy Carapace 4235 | -6/Deep Caves | Discovered new exit (range 11) 4267 | -6/Deep Caves | Spotted Golem 4283 | -6/Deep Caves | Triggered Deep Caves wall 4283 | -6/Deep Caves | Reached level 18 4413 | -6/Deep Caves | Core integrity fell below 20% 4423 | -6/Deep Caves | Destroyed by Golem with Assembled Focal Cannon Last Messages --------------- 04258_ Dropped Protomatter-8. 04259_ Used Protomatter to restore core integrity (+24, depleted) 04263_ Upgraded: Sight Range (+4) 04274_ Golem: "DSI9AT1D G8OHIBQ29FWG 26R186 QD12WHW8W33 TDK1 81FTS" 04274_ Jacked Golem... >>parse_system Reading system data... 04277_ KB-X0J(h) destroyed. 04279_ Acquired Protomatter-46. 04283_ The wall dematerializes. 04283_ Reached level 18. 04284_ Chainsword follow-up attack on Golem. 04293_ Zio. Heavy Carapace destroyed. 04303_ Dropped Protomatter-46. 04308_ Used Protomatter to restore core integrity (+138, depleted) 04383_ Chainsword follow-up attack on Golem. 04412_ Hardlight Generator destroyed. 04416_ Chainsword follow-up attack on Golem. 04420_ Zio. Glidesys I destroyed. 04423_ Chainsword follow-up attack on Golem. Map ----- +----------------------------------------------------+ | ?????????????????######## ?????????????????# | | ???????????????######### ## ???????????????? | | ??????????????########## ### #??????????????? | | ?????????????########### #### ##?????????????? | | ????????????############ ### ###???????????#? | | ???????????############ ### ####???????????? | | ???????????########### #### ####???????????? | | ??????????########### ##### ####?????????? | | ??????????############ ###### #"#??? ?????? | | ?????????############## ###### ### ??????# | | ?????????############### ?????? #? | | ???????################# ???? ?? | | ??????################# # "" ##? | | ????##??############### # """ #??# | | ??##################### # " ??????? | | #?# ##?##### ## ### # ??????? | | ### ###?### ### ;;# ##?????# | | # ##### ### #### ###?????? | | ##?##### ### ;#### ##### ???? | | ####### ### ############# ???? | | ! ##### #;; ########### ? ### | | ####### ###; ;####### ### | | ####### ###; ########< # ##### | | ###### #; ################### | | ! ###### ### ################ | | ##### ##### @G ##############?# | | ### ##########; ################# | | ## ############ ################# | | ## ########### ################ | | *a ## ### #### ## ##?## | | ## #### ## #### | | ## ### ### ### | | ]a ## ### #### | | aaaaa## #### ##### | | a ## #### ### #### | | ] a a a aaa a a ## ### #### | | ] a a ### | | ## ## | | ""### ## #### | | ##### #### | | ###### #### # | | # # ###### #### ## | | ## ## ######## ##### #### ### | | ## ############ ### ####### #################? | | ## ############################################?## | | ########################################?######### | | | | | | | | | +----------------------------------------------------+ Best States ------------- Heat Dissipation 73 Energy Generation 47 Energy Capacity 460 Matter Stores 500 Matter Capacity 500 Sight Range 24 Robot Scan Range 24 Terrain Scan Range 16 Terrain Scan Density 1910 Armor Coverage 1425 Resistance: KI 25 Resistance: TH 25 Resistance: EX 25 Resistance: EM 20 Resistance: I 20 Resistance: S 20 Resistance: P 20 Weapon Shielding 100 Melee Speed Boost 20 Evasion (%) 65 Target Analysis 5 Armor Integrity Analysis 30 Offensive Hacking 120 Defensive Hacking 80 Item Schematics ----------------- Hover Unit | -8/Materials | Scanalyzed EM Shield | -6/Zion | Archive Field Propulsion Drive | -6/Zion | Archive Imp. Heavy Armor Plating | -6/Zion | Archive Imp. Coolant Injector | -6/Zion | Archive Lgt. Angular Momentum Engine | -6/Zion | Archive Lrn. Proton Cannon | -6/Zion | Archive Thermic Laser | -6/Zion | Archive Impulse Thruster | -6/Zion | Archive Adv. Thermal Generator | -6/Zion | Archive Hvy. Flak Cannon | -6/Zion | Archive Imp. Arc Projector | -6/Zion | Archive Imp. Hardlight Generator | -6/Zion | Archive Arm. Medium Treads | -6/Zion | Archive Fission Core | -6/Zion | Archive Hvy. Mass Driver | -6/Zion | Archive Robot Schematics ------------------ A-02 Transporter | -6/Zion | Archive O-24 Administrator | -6/Zion | Archive T-07 Excavator | -6/Zion | Archive Fabricated ------------ Hover Unit | x3 | -7/Factory Repaired ---------- Nothing Studied --------- Imp. Datajack | -8/Materials | Hacked Flight Unit | -8/Materials | Hacked Hover Unit | -8/Materials | Hacked Imp. Ion Engine | -8/Materials | Hacked Rocket Launcher | -8/Materials | Hacked Gauss Rifle | -7/Factory | Hacked Katana | -7/Factory | Hacked Remote Datajack | -7/Factory | Hacked Alien Tech Used ----------------- None Achievements -------------- None Challenges ------------ None RPGLIKE | -11 -10 -10 -10 -9 -8 -7 -7 -6 -6 -6 -6 -6 --------- Run | Yrd Mat Min Exi Min Mat Fac Sto Fac Low Low Zio Dee Levels Raised 17 | . . . . 1 5 3 2 2 1 2 . 1 XP Earned 29551 | 4000 700 500 200 1574 7130 3766 3699 2499 2200 1957 453 873 XP Spent 160230 | 39940 . . . . 74200 13700 8200 2600 5490 . 4600 11500 Upgrades 142 | 83 . . . . 23 8 9 1 9 . 3 6 Propulsion Slot 3 | 3 . . . . . . . . . . . . Utility Slot 11 | 3 . . . . . 4 . 1 . . 1 2 Weapon Slot 2 | 2 . . . . . . . . . . . . Core Integrity 3 | 3 . . . . . . . . . . . . Heat Dissipation 8 | 3 . . . . . . 5 . . . . . Energy Generation 4 | 3 . . . . . 1 . . . . . . Energy Storage 3 | 3 . . . . . . . . . . . . Matter Storage 4 | 4 . . . . . . . . . . . . Mass Support 4 | 2 . . . . . . 2 . . . . . Inventory Capacity 10 | 5 . . . . . 3 2 . . . . . Sight Range 8 | 4 . . . . . . . . . . . 4 Sensor Range 12 | 12 . . . . . . . . . . . . Terrain Scan Density 19 | 10 . . . . . . . . 9 . . . Ranged Accuracy 2 | 2 . . . . . . . . . . . . Melee Accuracy 8 | 6 . . . . . . . . . . 2 . Hack Attack % 22 | 7 . . . . 15 . . . . . . . Hack Defense % 16 | 8 . . . . 8 . . . . . . . KI Resistance % 1 | 1 . . . . . . . . . . . . TH Resistance % 1 | 1 . . . . . . . . . . . . EX Resistance % 1 | 1 . . . . . . . . . . . . Protomatter Created 1578 | . 31 . . . 287 161 111 45 406 391 . 146 Integrity Restored 2980 | . 85 . . 108 335 55 128 64 872 706 . 627 Core 2190 | . 72 . . 64 258 44 93 51 500 481 . 627 Parts 790 | . 13 . . 44 77 11 35 13 372 225 . . Protomatter Decayed 595 | . . . . 2 103 . 186 22 40 242 . . Game ------ Seed PointWardroneBasin Manual? 0 Play Time 01:29:46 Cumulative 363.4 hours Start 2026.07.28 @ 22:12:14 End 2026.07.29 @ 00:35:38 Sessions 1 Manual Loads 0 Difficulty Adventurer Special Mode Winter2019/RPGLIKE Game No. 136 Rogue 0 Adventurer 2 Explorer 134 Win Type - Total 32 Types 18/1/6/3/1/1/1/0/1/0 Lore% 80 Gallery% 73 Achievement% 66 Wizard Run 0 Options --------- Layout 0 ASCII 0 Keyboard 1 Movement Numpad Keybinds 0 Fullscreen 2 Font 18/X11 Map View 76x50 Zoom Use 0% Tactical HUD 1 Map Filters BRIGHTNESS(150) Filters NONE Steam 1 RUN: 8b114acd-3b95-4cd0-94c7-de1f278b9c7e